[Event "German Championship Women 2022"]
[Site "Magdeburg"]
[Date "2022.08.17"]
[Round "5.6"]
[White "Bluebaum, Johanna"]
[Black "Braun, Kristin"]
[Result "0-1"]
[ECO "E92"]
[WhiteElo "2013"]
[BlackElo "1897"]
[Annotator "NA RC"]
[PlyCount "82"]
[EventDate "2022.08.14"]
[EventType "swiss"]
[EventCountry "GER"]
[SourceTitle "playchess.com"]
[Source "ChessBase"]
[SourceQuality "1"]
[TimeControl "40/5400+30:1800+30"]

1. d4 {[%emt 0:00:01]} Nf6 {[%emt 0:00:04]} 2. c4 {[%emt 0:00:05]} g6 {[%emt 0:00:02]} 3. Nc3 {[%emt 0:00:08]} Bg7 {[%emt 0:00:02]} 4. e4 {[%emt 0:00:06]} d6 {[%emt 0:00:02]} 5. Nf3 {[%emt 0:00:12]} O-O {[%emt 0:00:06]} 6. Be2 {[%emt 0:00:11]} e5 {[%emt 0:00:03]} 7. Be3 {[%emt 0:00:05]} exd4 {[%emt 0:00:04]} 8. Nxd4 {[%emt 0:00:05]} Re8 {[%emt 0:00:05]} 9. f3 {[%emt 0:00:05]} c6 {[%emt 0:00:04]} 10. Bf2 {[%emt 0:00:51]} d5 {[%emt 0:00:17]} 11. exd5 {[%emt 0:00:44]} cxd5 {[%emt 0:00:06]} 12. c5 {[%emt 0:00:08]} Nc6 {[%emt 0:00:31]} 13. O-O {[%emt 0:10:47]} Nh5 {[%emt 0:00:15]} 14. Qd2 {[%emt 0:20:40]} a6 {[%emt 0:06:57]} 15. Rfe1 {[%emt 0:04:30]} Be5 {[%emt 0:02:28]} 16. g3 {[%emt 0:01:42]} Bh3 {[%emt 0:07:34]} 17. f4 {[%emt 0:05:58]} Bf6 {[%emt 0:33:14]} 18. Bf3 {[%emt 0:09:32]} Be7 {[%emt 0:07:21]} 19. Nxd5 {[%emt 0:02:31]} Nxd4 {[%emt 0:23:54]} 20. Bxd4 {[%emt 0:02:23]} Ng7 {[%emt 0:01:43]} 21. Nxe7+ {[%emt 0:19:17]} Rxe7 {[%emt 0:00:13]} 22. Rxe7 {[%emt 0:02:04]} Qxe7 {[%emt 0:00:08]} 23. Bxg7 {[%emt 0:00:54]} Kxg7 {[%emt 0:00:07]} 24. Qc3+ {[%emt 0:00:31]} Kg8 {[%emt 0:02:29]} 25. Re1 {[%emt 0:00:22]} Qd7 {[%emt 0:01:07]} 26. Qb4 {[%emt 0:01:26]} a5 {[%emt 0:08:37]} 27. Qxb7 {[%emt 0:04:58]} Qd4+ {[%emt 0:00:01]} 28. Kh1 {[%emt 0:00:11]} Rd8 {[%emt 0:01:05]} 29. Qe7 {[%emt 0:02:02]} Rc8 {[%emt 0:02:39]} 30. c6 {[%emt 0:02:38]} Qxb2 {[%emt 0:01:19]} 31. Bd5 {[%emt 0:02:40]} Rf8 {[%emt 0:02:07]} 32. Qe2 {[%emt 0:03:50]} Qc3 {[%emt 0:00:30]} 33. Qe3 {[%emt 0:01:01]} Qc2 {[%emt 0:00:25]} 34. Rc1 {[%emt 0:00:29]} Qb2 {[%emt 0:00:28]} 35. c7 {[%emt 0:00:24]} Rc8 {[%emt 0:00:17]} 36. Qc5 {[%emt 0:01:25]} Qd2 {[%emt 0:00:34]} 37. Qc4 {[%emt 0:00:26]} Rxc7 {[%emt 0:00:16]} 38. Bc6 {[%emt 0:01:45]} Bg2+ {[%emt 0:00:21]} 39. Kg1 {[%emt 0:00:11]} Bxc6 {[%emt 0:00:10]} 40. Rc2 {[%emt 0:00:52]} Qe1+ {[%emt 0:00:13]} 41. Qf1 {[%emt 0:30:08]} Qxf1+ {[%emt 0:30:12]} 0-1

[Event "German Championship Women 2022"]
[Site "Magdeburg"]
[Date "2022.08.17"]
[Round "5.7"]
[White "Peglau, Dora"]
[Black "Halas, Julia"]
[Result "1-0"]
[ECO "A48"]
[WhiteElo "1920"]
[BlackElo "2012"]
[Annotator "NA RC"]
[PlyCount "77"]
[EventDate "2022.08.14"]
[EventType "swiss"]
[EventCountry "GER"]
[SourceTitle "playchess.com"]
[Source "ChessBase"]
[SourceQuality "1"]
[TimeControl "40/5400+30:1800+30"]

1. d4 {[%emt 0:00:03]} Nf6 {[%emt 0:00:06]} 2. Nf3 {[%emt 0:00:15]} g6 3. Nbd2 {[%emt 0:00:13]} d5 {[%emt 0:01:43]} 4. e3 {[%emt 0:00:09]} Bg7 {[%emt 0:00:36]} 5. b4 {[%emt 0:00:19]} O-O {[%emt 0:01:45]} 6. Bb2 {[%emt 0:00:27]} Nbd7 {[%emt 0:07:26]} 7. c4 {[%emt 0:01:06]} c6 {[%emt 0:04:07]} 8. Be2 {[%emt 0:02:00]} Re8 {[%emt 0:11:50]} 9. O-O {[%emt 0:02:25]} dxc4 {[%emt 0:10:29]} 10. Nxc4 {[%emt 0:01:10]} Nb6 {[%emt 0:03:38]} 11. a4 {[%emt 0:14:14]} Ne4 {[%emt 0:05:09]} 12. Qc2 {[%emt 0:10:35]} Nd6 {[%emt 0:03:04]} 13. Nfe5 {[%emt 0:18:41]} Nd5 {[%emt 0:03:40]} 14. Ba3 {[%emt 0:04:57]} Bf5 {[%emt 0:04:36]} 15. Bd3 {[%emt 0:01:14]} Bxd3 {[%emt 0:04:21]} 16. Nxd3 {[%emt 0:00:58]} Nxc4 {[%emt 0:04:53]} 17. Qxc4 {[%emt 0:00:36]} Nb6 {[%emt 0:03:40]} 18. Qc2 {[%emt 0:02:28]} Nd7 {[%emt 0:00:45]} 19. Rfd1 {[%emt 0:01:46]} e6 {[%emt 0:01:32]} 20. Rac1 {[%emt 0:07:44]} Qg5 {[%emt 0:02:50]} 21. f4 {[%emt 0:05:17]} Qd8 {[%emt 0:06:18]} 22. b5 {[%emt 0:04:17]} cxb5 {[%emt 0:00:34]} 23. axb5 {[%emt 0:00:17]} Nf6 {[%emt 0:03:48]} 24. Nc5 {[%emt 0:06:13]} b6 {[%emt 0:01:41]} 25. Nb7 {[%emt 0:03:01]} Qd5 {[%emt 0:01:14]} 26. Nd6 {[%emt 0:01:47]} Red8 {[%emt 0:01:44]} 27. e4 {[%emt 0:04:25]} Qh5 {[%emt 0:04:37]} 28. h3 {[%emt 0:01:36]} Bf8 {[%emt 0:01:14]} 29. e5 {[%emt 0:00:54]} Nd5 {[%emt 0:00:20]} 30. Qf2 {[%emt 0:01:27]} Qh6 {[%emt 0:01:22]} 31. Rd3 {[%emt 0:01:20]} Qxf4 {[%emt 0:01:19]} 32. Rf3 {[%emt 0:00:15]} Qh6 {[%emt 0:01:20]} 33. Nxf7 {[%emt 0:00:36]} Qg7 {[%emt 0:01:30]} 34. Nxd8 {[%emt 0:00:15]} Bxa3 {[%emt 0:00:53]} 35. Rxa3 {[%emt 0:01:39]} Rxd8 {[%emt 0:00:06]} 36. Rf3 {[%emt 0:00:33]} Qd7 {[%emt 0:00:44]} 37. Rf1 {[%emt 0:00:16]} Qe7 {[%emt 0:02:56]} 38. Rf7 {[%emt 0:00:19]} Qa3 {[%emt 0:00:27]} 39. Qh4 {[%emt 0:00:29]} 1-0

[Event "German Championship Women 2022"]
[Site "Magdeburg"]
[Date "2022.08.17"]
[Round "5.8"]
[White "Zhou, Lepu Coco"]
[Black "Petersen, Sophie"]
[Result "1-0"]
[ECO "B51"]
[WhiteElo "1986"]
[BlackElo "1597"]
[Annotator "NA RC"]
[PlyCount "85"]
[EventDate "2022.08.14"]
[EventType "swiss"]
[EventCountry "GER"]
[SourceTitle "playchess.com"]
[Source "ChessBase"]
[SourceQuality "1"]
[TimeControl "40/5400+30:1800+30"]

1. e4 {[%emt 0:00:04]} c5 {[%emt 0:00:06]} 2. Nf3 {[%emt 0:00:11]} d6 {[%emt 0:00:09]} 3. Bb5+ {[%emt 0:00:18]} Nd7 {[%emt 0:00:09]} 4. Ba4 {[%emt 0:00:11]} Ngf6 {[%emt 0:00:10]} 5. O-O {[%emt 0:00:29]} e6 {[%emt 0:00:28]} 6. Re1 {[%emt 0:00:38]} Be7 {[%emt 0:01:06]} 7. c4 {[%emt 0:00:28]} O-O {[%emt 0:02:02]} 8. d3 {[%emt 0:01:36]} Nb6 {[%emt 0:02:46]} 9. Bc2 {[%emt 0:02:05]} d5 {[%emt 0:03:19]} 10. e5 {[%emt 0:02:33]} Ne8 {[%emt 0:01:15]} 11. cxd5 {[%emt 0:01:13]} Nxd5 {[%emt 0:00:48]} 12. Nc3 {[%emt 0:02:25]} Nb4 {[%emt 0:02:05]} 13. Bb1 {[%emt 0:01:56]} b6 {[%emt 0:03:30]} 14. d4 {[%emt 0:05:50]} h6 {[%emt 0:05:51]} 15. a3 {[%emt 0:11:19]} Nd5 {[%emt 0:15:09]} 16. Nxd5 {[%emt 0:15:29]} exd5 {[%emt 0:00:32]} 17. Bxh6 {[%emt 0:04:26]} f5 {[%emt 0:19:16]} 18. exf6 {[%emt 0:13:07]} Rxf6 {[%emt 0:02:08]} 19. Bg5 {[%emt 0:00:51]} Re6 {[%emt 0:01:13]} 20. Rxe6 {[%emt 0:06:14]} Bxe6 {[%emt 0:00:10]} 21. Qe2 {[%emt 0:03:27]} Nc7 {[%emt 0:02:17]} 22. Bxe7 {[%emt 0:03:05]} Qxe7 {[%emt 0:00:16]} 23. Qd3 {[%emt 0:02:32]} Qf6 {[%emt 0:03:14]} 24. Bc2 {[%emt 0:04:14]} c4 {[%emt 0:02:05]} 25. Qh7+ {[%emt 0:00:18]} Kf8 {[%emt 0:00:53]} 26. Ne5 {[%emt 0:00:38]} Ke7 {[%emt 0:05:28]} 27. f4 {[%emt 0:03:20]} Kd6 {[%emt 0:06:23]} 28. f5 {[%emt 0:00:35]} Bg8 {[%emt 0:01:54]} 29. Qh3 {[%emt 0:00:14]} Nb5 {[%emt 0:00:42]} 30. Qg3 {[%emt 0:02:41]} Ke7 {[%emt 0:02:53]} 31. Re1 {[%emt 0:00:45]} Kd8 {[%emt 0:01:32]} 32. Qe3 {[%emt 0:01:48]} Kc8 {[%emt 0:03:15]} 33. a4 {[%emt 0:01:24]} Nc7 {[%emt 0:00:40]} 34. Ng6 {[%emt 0:02:58]} Kb7 {[%emt 0:01:38]} 35. Qf4 {[%emt 0:00:21]} Re8 {[%emt 0:03:50]} 36. Rxe8 {[%emt 0:00:57]} Nxe8 {[%emt 0:00:10]} 37. Qe3 {[%emt 0:00:48]} Nd6 {[%emt 0:00:57]} 38. g4 {[%emt 0:00:31]} Bf7 {[%emt 0:03:04]} 39. Qe5 {[%emt 0:03:51]} Ne8 {[%emt 0:02:12]} 40. Qxf6 {[%emt 0:01:41]} Nxf6 {[%emt 0:01:02]} 41. Ne5 {[%emt 0:30:27]} Bg8 {[%emt 0:30:30]} 42. g5 {[%emt 0:00:22]} Ne8 {[%emt 0:01:03]} 43. h4 {[%emt 0:01:44]} 1-0

[Event "German Championship Women 2022"]
[Site "Magdeburg"]
[Date "2022.08.17"]
[Round "5.9"]
[White "Basovskiy, Jana"]
[Black "Storkebaum, Ulrike"]
[Result "1-0"]
[ECO "C68"]
[WhiteElo "1867"]
[BlackElo "1768"]
[Annotator "NA RC"]
[PlyCount "57"]
[EventDate "2022.08.14"]
[EventType "swiss"]
[EventCountry "GER"]
[SourceTitle "playchess.com"]
[Source "ChessBase"]
[SourceQuality "1"]
[TimeControl "40/5400+30:1800+30"]

1. e4 {[%emt 0:00:01]} e5 {[%emt 0:00:07]} 2. Nf3 {[%emt 0:00:04]} Nc6 {[%emt 0:00:04]} 3. Bb5 {[%emt 0:00:04]} a6 {[%emt 0:00:15]} 4. Bxc6 {[%emt 0:00:05]} dxc6 {[%emt 0:00:11]} 5. Nc3 {[%emt 0:00:05]} Bg4 {[%emt 0:00:41]} 6. h3 {[%emt 0:00:05]} Bxf3 {[%emt 0:06:16]} 7. Qxf3 {[%emt 0:00:06]} Qf6 {[%emt 0:01:48]} 8. Qxf6 {[%emt 0:00:19]} Nxf6 {[%emt 0:00:05]} 9. d3 {[%emt 0:00:32]} h6 {[%emt 0:00:47]} 10. a3 {[%emt 0:07:17]} O-O-O {[%emt 0:00:37]} 11. Be3 {[%emt 0:00:44]} c5 {[%emt 0:03:53]} 12. f4 {[%emt 0:04:51]} Bd6 {[%emt 0:05:55]} 13. fxe5 {[%emt 0:01:13]} Bxe5 {[%emt 0:00:09]} 14. Bxc5 {[%emt 0:00:22]} b6 {[%emt 0:02:52]} 15. Be3 {[%emt 0:02:43]} Rhe8 {[%emt 0:06:16]} 16. O-O-O {[%emt 0:05:52]} Bxc3 {[%emt 0:19:00]} 17. bxc3 {[%emt 0:00:14]} Re6 {[%emt 0:05:50]} 18. Rhf1 {[%emt 0:02:40]} c5 {[%emt 0:01:59]} 19. Kb2 {[%emt 0:07:13]} Rd7 {[%emt 0:02:20]} 20. Bg1 {[%emt 0:01:02]} Kb7 {[%emt 0:07:54]} 21. c4 {[%emt 0:05:33]} Kc6 {[%emt 0:08:30]} 22. Rb1 {[%emt 0:04:33]} b5 {[%emt 0:02:58]} 23. cxb5+ {[%emt 0:00:29]} axb5 {[%emt 0:00:10]} 24. Rf5 {[%emt 0:01:05]} c4 {[%emt 0:02:08]} 25. Rc5+ {[%emt 0:01:50]} Kd6 {[%emt 0:00:44]} 26. Rxb5 {[%emt 0:00:41]} cxd3 {[%emt 0:00:28]} 27. cxd3 {[%emt 0:08:45]} Kc7 {[%emt 0:04:32]} 28. Rc1+ {[%emt 0:01:26]} Rc6 {[%emt 0:00:06]} 29. Bh2+ {[%emt 0:00:07]} 1-0

[Event "German Championship Women 2022"]
[Site "Magdeburg"]
[Date "2022.08.17"]
[Round "5.10"]
[White "Voigt, Anastasia"]
[Black "Mader, Lena"]
[Result "1-0"]
[ECO "B15"]
[WhiteElo "1694"]
[BlackElo "1826"]
[Annotator "NA RC"]
[PlyCount "83"]
[EventDate "2022.08.14"]
[EventType "swiss"]
[EventCountry "GER"]
[SourceTitle "playchess.com"]
[Source "ChessBase"]
[SourceQuality "1"]
[TimeControl "40/5400+30:1800+30"]

1. e4 {[%emt 0:00:01]} c6 {[%emt 0:00:06]} 2. d4 {[%emt 0:00:04]} d5 {[%emt 0:00:04]} 3. Nd2 {[%emt 0:00:04]} dxe4 {[%emt 0:00:06]} 4. Nxe4 {[%emt 0:00:06]} Nf6 {[%emt 0:00:05]} 5. Nxf6+ {[%emt 0:00:07]} exf6 {[%emt 0:00:02]} 6. c3 {[%emt 0:00:09]} Bd6 {[%emt 0:00:10]} 7. Bd3 {[%emt 0:00:07]} O-O {[%emt 0:00:30]} 8. Qc2 {[%emt 0:00:07]} Re8+ {[%emt 0:00:11]} 9. Ne2 {[%emt 0:00:06]} h5 {[%emt 0:00:05]} 10. Be3 {[%emt 0:00:05]} Be6 {[%emt 0:00:56]} 11. O-O-O {[%emt 0:00:59]} b5 {[%emt 0:12:11]} 12. Kb1 {[%emt 0:00:17]} a5 {[%emt 0:00:50]} 13. Bf4 {[%emt 0:01:36]} Be7 {[%emt 0:07:17]} 14. Ng3 {[%emt 0:07:37]} Qd5 {[%emt 0:09:55]} 15. b3 {[%emt 0:09:27]} a4 {[%emt 0:05:15]} 16. b4 {[%emt 0:03:22]} h4 {[%emt 0:25:37]} 17. Be4 {[%emt 0:04:06]} Qd7 {[%emt 0:08:14]} 18. Nf5 {[%emt 0:01:59]} Bd5 {[%emt 0:00:39]} 19. Nxe7+ {[%emt 0:04:22]} Rxe7 {[%emt 0:00:30]} 20. Bf5 {[%emt 0:04:23]} Qe8 {[%emt 0:01:36]} 21. f3 {[%emt 0:01:06]} Re2 {[%emt 0:01:40]} 22. Rd2 {[%emt 0:00:15]} Re1+ {[%emt 0:01:47]} 23. Rxe1 {[%emt 0:00:09]} Qxe1+ {[%emt 0:00:02]} 24. Rd1 {[%emt 0:00:44]} Qe7 {[%emt 0:02:33]} 25. Qd2 {[%emt 0:00:59]} Nd7 {[%emt 0:02:57]} 26. Re1 {[%emt 0:00:13]} Qd8 {[%emt 0:01:38]} 27. Qe2 {[%emt 0:02:35]} Nb6 {[%emt 0:01:35]} 28. Bc7 {[%emt 0:00:49]} Bxa2+ {[%emt 0:03:11]} 29. Ka1 {[%emt 0:00:58]} Bc4 {[%emt 0:04:14]} 30. Bxd8 {[%emt 0:00:10]} Bxe2 {[%emt 0:00:04]} 31. Bxb6 {[%emt 0:00:14]} Bc4 {[%emt 0:00:07]} 32. Re7 {[%emt 0:01:16]} g6 {[%emt 0:00:31]} 33. Bd7 {[%emt 0:03:13]} Ra6 {[%emt 0:00:54]} 34. Bc5 {[%emt 0:01:53]} a3 {[%emt 0:00:58]} 35. Bc8 {[%emt 0:02:36]} Ra4 {[%emt 0:00:42]} 36. Bb7 {[%emt 0:09:42]} a2 {[%emt 0:03:21]} 37. Bxc6 {[%emt 0:05:58]} Ra3 {[%emt 0:00:08]} 38. d5 {[%emt 0:04:58]} Rxc3 {[%emt 0:01:04]} 39. Re1 {[%emt 0:00:44]} Rb3 {[%emt 0:01:24]} 40. d6 {[%emt 0:00:34]} Rd3 {[%emt 0:02:59]} 41. d7 {[%emt 0:30:28]} Kg7 {[%emt 0:31:15]} 42. Be7 {[%emt 0:00:30]} 1-0

[Event "German Championship Women 2022"]
[Site "Magdeburg"]
[Date "2022.08.17"]
[Round "5.11"]
[White "Peglau, Sarah"]
[Black "Wartenberg, Alissa"]
[Result "0-1"]
[ECO "A00"]
[WhiteElo "1782"]
[BlackElo "1632"]
[Annotator "NA RC"]
[PlyCount "64"]
[EventDate "2022.08.14"]
[EventType "swiss"]
[EventCountry "GER"]
[SourceTitle "playchess.com"]
[Source "ChessBase"]
[SourceQuality "1"]
[TimeControl "40/5400+30:1800+30"]

1. g3 {[%emt 0:00:04]} d5 {[%emt 0:00:06]} 2. Bg2 {[%emt 0:00:13]} Nf6 {[%emt 0:00:55]} 3. Nf3 {[%emt 0:00:34]} c6 {[%emt 0:00:38]} 4. d4 {[%emt 0:02:15]} e6 {[%emt 0:05:07]} 5. c4 {[%emt 0:05:48]} Nbd7 {[%emt 0:14:29]} 6. Bg5 {[%emt 0:01:55]} Be7 {[%emt 0:00:42]} 7. Nbd2 {[%emt 0:01:18]} O-O {[%emt 0:01:11]} 8. O-O {[%emt 0:02:04]} h6 {[%emt 0:02:25]} 9. Bxf6 {[%emt 0:00:23]} Nxf6 {[%emt 0:01:04]} 10. Ne5 {[%emt 0:02:28]} a5 {[%emt 0:07:09]} 11. e3 {[%emt 0:05:42]} Bd6 {[%emt 0:10:37]} 12. f4 {[%emt 0:02:07]} Bxe5 {[%emt 0:02:11]} 13. dxe5 {[%emt 0:05:06]} Nd7 {[%emt 0:01:13]} 14. Qe2 {[%emt 0:01:39]} b5 {[%emt 0:06:36]} 15. cxd5 {[%emt 0:04:09]} cxd5 {[%emt 0:01:16]} 16. e4 {[%emt 0:02:24]} Nb6 {[%emt 0:06:45]} 17. Rfd1 {[%emt 0:03:00]} Qe8 {[%emt 0:03:55]} 18. exd5 {[%emt 0:02:11]} Nxd5 {[%emt 0:01:58]} 19. Ne4 {[%emt 0:01:04]} Rb8 {[%emt 0:06:23]} 20. Nd6 {[%emt 0:01:18]} Qc6 {[%emt 0:00:28]} 21. Kh1 {[%emt 0:08:12]} Bb7 {[%emt 0:06:38]} 22. Rac1 {[%emt 0:01:21]} Qb6 {[%emt 0:01:11]} 23. Rd2 {[%emt 0:11:50]} Rfd8 {[%emt 0:03:45]} 24. Qxb5 {[%emt 0:04:57]} Rxd6 {[%emt 0:02:15]} 25. Qf1 {[%emt 0:04:29]} Rdd8 {[%emt 0:01:27]} 26. Be4 {[%emt 0:02:29]} Ne3 {[%emt 0:01:17]} 27. Rxd8+ {[%emt 0:00:38]} Rxd8 {[%emt 0:00:06]} 28. Qf3 {[%emt 0:00:11]} Bxe4 {[%emt 0:00:35]} 29. Qxe4 {[%emt 0:00:02]} Ng4 {[%emt 0:00:10]} 30. Qe2 {[%emt 0:01:25]} Qe3 {[%emt 0:02:44]} 31. Qxe3 {[%emt 0:00:08]} Nxe3 {[%emt 0:00:05]} 32. Rc5 {[%emt 0:00:38]} Rd1# 0-1

[Event "German Championship Women 2022"]
[Site "Magdeburg"]
[Date "2022.08.17"]
[Round "5.13"]
[White "Mekus, Manuela"]
[Black "Perez Celis, Alba"]
[Result "0-1"]
[ECO "A00"]
[WhiteElo "1638"]
[BlackElo "1816"]
[Annotator "NA RC"]
[PlyCount "52"]
[EventDate "2022.08.14"]
[EventType "swiss"]
[EventCountry "GER"]
[SourceTitle "playchess.com"]
[Source "ChessBase"]
[SourceQuality "1"]
[TimeControl "40/5400+30:1800+30"]

1. d3 {[%emt 0:00:08]} f5 {[%emt 0:01:39]} 2. c3 {[%emt 0:00:14]} e5 {[%emt 0:00:48]} 3. g3 {[%emt 0:00:07]} Nf6 {[%emt 0:00:49]} 4. Bg2 {[%emt 0:00:11]} d5 {[%emt 0:00:46]} 5. Nd2 {[%emt 0:00:10]} Nc6 {[%emt 0:00:36]} 6. Ngf3 {[%emt 0:05:42]} e4 {[%emt 0:00:32]} 7. dxe4 {[%emt 0:01:05]} dxe4 {[%emt 0:01:52]} 8. Ng5 {[%emt 0:00:46]} h6 {[%emt 0:00:32]} 9. Nh3 {[%emt 0:00:03]} g5 {[%emt 0:00:18]} 10. e3 {[%emt 0:02:37]} Be6 {[%emt 0:03:44]} 11. O-O {[%emt 0:02:54]} Qd7 {[%emt 0:02:07]} 12. Nb3 {[%emt 0:01:33]} Bd6 {[%emt 0:02:02]} 13. Kh1 {[%emt 0:02:12]} f4 {[%emt 0:00:30]} 14. exf4 {[%emt 0:02:11]} Bxh3 {[%emt 0:00:53]} 15. fxg5 {[%emt 0:00:06]} hxg5 {[%emt 0:02:33]} 16. Bxe4 {[%emt 0:04:28]} Bxf1 {[%emt 0:02:52]} 17. Bg6+ {[%emt 0:01:24]} Kd8 {[%emt 0:01:12]} 18. Qxf1 {[%emt 0:00:27]} Qg4 {[%emt 0:10:47]} 19. Be3 {[%emt 0:03:37]} Ne5 {[%emt 0:03:37]} 20. Bxg5 {[%emt 0:05:14]} Qxg5 {[%emt 0:03:10]} 21. f4 {[%emt 0:00:03]} Qxg6 {[%emt 0:01:52]} 22. fxe5 {[%emt 0:00:13]} Bxe5 {[%emt 0:00:59]} 23. Rd1+ {[%emt 0:00:39]} Bd6 {[%emt 0:00:20]} 24. Qf3 {[%emt 0:01:22]} Qe4 {[%emt 0:01:27]} 25. Qxe4 {[%emt 0:01:28]} Nxe4 {[%emt 0:00:07]} 26. Kg2 {[%emt 0:00:46]} Kd7 {[%emt 0:00:24]} 0-1

[Event "German Championship Women 2022"]
[Site "Magdeburg"]
[Date "2022.08.18"]
[Round "6.1"]
[White "Schulze, Lara"]
[Black "Falke, Ornella"]
[Result "1-0"]
[ECO "B51"]
[WhiteElo "2292"]
[BlackElo "1912"]
[Annotator "TA"]
[PlyCount "79"]
[EventDate "2022.08.14"]
[EventType "swiss"]
[EventCountry "GER"]
[SourceTitle "playchess.com"]
[Source "ChessBase"]
[SourceQuality "1"]
[TimeControl "40/5400+30:1800+30"]

{[%evp 9,79,11,27,0,21,20,25,10,17,14,51,50,46,48,45,35,80,43,52,38,34,0,14,12,22,17,36,15,30,-8,8,21,0,-18,-18,-14,0,0,0,0,47,0,106,90,90,87,110,102,95,92,138,133,286,287,271,259,236,203,227,245,358,308,310,304,310,308,310,302,288,278,29990,29991]} 1. e4 {[%emt 0:00:02]} c5 {[%emt 0:00:06]} 2. Nf3 {[%emt 0:00:06]} d6 {[%emt 0:00:08]} 3. Bb5+ {[%emt 0:00:05]} Nd7 {[%emt 0:00:18]} 4. c4 {[%emt 0:00:09]} Ngf6 {[%emt 0:00:38]} 5. Nc3 {[%emt 0:00:11]} g6 {[%emt 0:01:52]} 6. h3 {[%emt 0:00:55] B51: Sicilian: Moscow Variation (3 Bb5+) without 3...Bd7.} a6 {[%emt 0:00:45]} 7. Ba4 {[%emt 0:02:56]} Bg7 {[%emt 0:01:14]} 8. d3 {[%emt 0:00:14] White has an edge.} O-O {[%emt 0:02:23][%cal Ob7b5]} 9. Be3 {[%emt 0:00:29] [#]} h6 $146 {[%emt 0:03:45]} ({Predecessor:} 9... Qc7 10. Qd2 e6 11. O-O b6 12. Bh6 Bb7 13. Bxg7 Kxg7 14. Rae1 d5 15. cxd5 exd5 {1-0 (28) Stefansson,H (2525)-Kjartansson,G (2430) Selfoss 2022}) 10. Qd2 {[%emt 0:07:49]} Kh7 {[%emt 0:00:31]} 11. O-O {[%emt 0:00:18]} Rb8 {[%emt 0:05:42]} 12. a3 {[%emt 0:06:23]} Ne8 {[%emt 0:08:31]} 13. Rab1 {[%emt 0:06:13] 0x0.0020b433730adp-1022s more active pieces. The black rooks are badly placed.} Nc7 {[%emt 0:03:25]} 14. Bxd7 {[%emt 0:04:45]} Bxd7 {[%emt 0:05:14]} 15. b4 {[%emt 0:02:03]} (15. d4 $5 {[%cal Rd4c5]}) 15... b6 {[%emt 0:07:21]} 16. d4 {[%emt 0:06:04]} cxd4 {[%emt 0:28:59]} 17. Nxd4 {[%emt 0:01:36]} f5 {[%emt 0:00:44]} 18. exf5 {[%emt 0:07:22]} gxf5 {[%emt 0:01:56] aiming for ...e5.} 19. f4 {[%emt 0:00:09]} e5 {[%emt 0:01:45]} 20. Nde2 {[%emt 0:08:35]} Be6 {[%emt 0:00:16]} 21. Rfd1 {[%emt 0:01:55]} Bxc4 {[%emt 0:03:14]} 22. Qxd6 {[%emt 0:01:12] Black must now prevent Qc6.} Qxd6 {[%emt 0:08:46]} 23. Rxd6 {[%emt 0:00:17]} b5 {[%emt 0:02:39]} 24. Rd7 {[%emt 0:06:52]} Rf7 {[%emt 0:03:43]} (24... Ne6 $11) 25. Rbd1 {[%emt 0:00:52]} (25. Rxf7 $1 $14 Bxf7 26. fxe5) 25... Rbf8 {[%emt 0:01:33]} (25... Rxd7 $1 $11 26. Rxd7 Ne6) 26. Bc5 $16 {[%emt 0:02:56]} Rxd7 {[%emt 0:00:41]} 27. Rxd7 {[%emt 0:00:11]} Rf7 {[%emt 0:00:15]} 28. Rxf7 {[%emt 0:01:37]} Bxf7 {[%emt 0:00:04]} 29. Bd6 $1 {[%emt 0:00:06][%csl LRc7,LRe5]} Na8 {[%emt 0:01:21]} (29... Ne8 $142 30. Bxe5 (30. fxe5 Nxd6 31. exd6 Be6 $11) 30... Bf8) 30. Bxe5 {[%emt 0:05:02]} ({But not} 30. fxe5 Nb6 $14) 30... Bxe5 $2 {[%emt 0:00:16] A mistake that costs the game.} (30... Bf8 $16) 31. fxe5 {[%emt 0:00:05][%cal Bf4e5,Be5e6,Be6e7][%mdl 4128] Endgame KBN-KNN} Nb6 {[%emt 0:00:09]} 32. Nf4 {[%emt 0:07:54]} Kg7 {[%emt 0:01:34]} 33. e6 {[%emt 0:03:53]} Bg8 {[%emt 0:01:11] [#]} 34. e7 $1 {[%emt 0:04:32]} Bf7 {[%emt 0:00:11] [#]} (34... Kf7 $142 35. Nfd5 Nc8) 35. Nfd5 $1 {[%emt 0:03:30][%mdl 512]} Nc8 {[%emt 0:00:40]} 36. Kf2 {[%emt 0:01:28]} Be8 {[%emt 0:01:49]} 37. Ke3 {[%emt 0:01:08]} Bc6 {[%emt 0:02:24]} 38. Kd4 {[%emt 0:01:30]} Kf7 {[%emt 0:00:53]} 39. Ke5 {[%emt 0:01:25]} Nd6 $2 {[%emt 0:01:05]} (39... Nxe7 $18 40. Nxe7 Kxe7) 40. Kxd6 {[%emt 0:00:12] Weighted Error Value: White=0.09 (flawless) /Black=0.39} 1-0